fUST/lending_fUST_20260111
["ID","MTS","AMOUNT","RATE_DAILY","PERIOD"]
[401234590,1768060802375,300.0,9.591e-05,2]
[401234591,1768060805642,500.0,9.591e-05,2]
[401234592,1768060806055,500.0,9.591e-05,2]
[401234593,1768060806423,500.0,9.591e-05,2]
[401234594,1768060806794,500.0,9.591e-05,2]
[401234595,1768060807146,500.0,9.591e-05,2]
[401234596,1768060807510,500.0,9.591e-05,2]
[401234597,1768060807911,500.0,9.591e-05,2]
[401234598,1768060808133,1200.0,9.591e-05,2]
[401234599,1768060808262,500.0,9.591e-05,2]
[401234600,1768060808717,500.0,9.591e-05,2]
[401234601,1768060809072,500.0,9.591e-05,2]
[401234602,1768060809425,500.0,9.591e-05,2]
[401234603,1768060809787,500.0,9.591e-05,2]
[401234604,1768060810311,500.0,9.591e-05,2]
[401234605,1768060810613,500.0,9.591e-05,2]
[401234643,1768060885723,-300.0,9.59e-05,2]
[401234644,1768060885882,-105.37341243,9.591e-05,2]
[401234645,1768060887639,-394.62658757,9.591e-05,2]
[401234646,1768060887666,-53.02049569,9.591e-05,2]
[401234651,1768060896503,207.65,7.562e-05,2]
[401234652,1768060896950,311.48,7.905e-05,2]
[401234653,1768060897407,415.3,8.249e-05,2]
[401234654,1768060897955,519.13,8.593e-05,2]
[401234655,1768060898464,622.96,8.936e-05,2]
[401234656,1768060900786,-165.14753977,9.28e-05,2]
[401234657,1768060902862,-178.74164817,9.28e-05,2]
[401234684,1768060976990,166.19,6.348e-05,2]
[401234685,1768060977590,249.28,6.636e-05,2]
[401234686,1768060978003,332.38,6.925e-05,2]
[401234687,1768060978446,415.47,7.213e-05,2]
[401234688,1768060979357,498.57,7.502e-05,2]
[401234689,1768060979877,581.66,7.791e-05,2]
[401234690,1768060980308,664.76,8.079e-05,2]
[401234691,1768060980719,747.85,8.368e-05,2]
[401234692,1768060981148,830.95,8.656e-05,2]
[401234708,1768061053206,155.92,8.824e-05,2]
[401234712,1768061080673,-181.9,9.164e-05,2]
[401234713,1768061080699,-207.89,9.503e-05,2]
[401234714,1768061080721,-58.13031637,9.586e-05,2]
[401234717,1768061125757,-173.19,9.184e-05,2]
[401234718,1768061125785,-197.93,9.524e-05,2]
[401234719,1768061125809,-30.54456692,9.586e-05,2]
[401234720,1768061127650,-175.8120154,9.586e-05,2]
[401234721,1768061129118,-198.33543308,9.586e-05,2]
[401234722,1768061131633,-428.11538093,9.586e-05,2]
[401234723,1768061136875,-296.07260367,9.586e-05,2]
[401234725,1768061139585,-217.10891367,9.586e-05,2]
[401234726,1768061145424,-211.4232998,9.586e-05,2]
[401234727,1768061149941,-273.13235345,9.586e-05,2]
[401234728,1768061151970,-254.0,9.586e-05,2]
[401234729,1768061157730,-300.0,9.586e-05,2]
[401234730,1768061159239,-283.36968542,9.586e-05,2]
[401234731,1768061160757,-162.62594836,9.586e-05,2]
[401234732,1768061163291,-178.0,9.586e-05,2]
[401234734,1768061165910,-159.37405164,9.586e-05,2]
[401234735,1768061168557,-164.46405627,9.586e-05,2]
[401234736,1768061169954,-124.50304892,9.586e-05,2]
[401234737,1768061169979,-125.43522869,9.59e-05,2]
[401234739,1768061176078,-174.56477131,9.59e-05,2]
[401234740,1768061176102,-402.2333988,9.591e-05,2]
[401234741,1768061178157,-356.0873905,9.591e-05,2]
[401234742,1768061181256,-236.83543007,9.591e-05,2]
[401234743,1768061183720,-317.80609975,9.591e-05,2]
[401234744,1768061185225,-352.3680819,9.591e-05,2]
[401234745,1768061189502,-228.39068807,9.591e-05,2]
[401234746,1768061190979,-227.09197064,9.591e-05,2]
[401234747,1768061191720,160.15,7.829e-05,2]
[401234748,1768061192184,180.16,8.109e-05,2]
[401234749,1768061192597,182.54694457,8.389e-05,2]
[401234750,1768061192934,-356.19612598,9.591e-05,2]
[401234751,1768061195532,-152.11,9.591e-05,2]
[401234752,1768061198322,-524.87584101,9.591e-05,2]
[401234754,1768061199818,-300.00000003,9.591e-05,2]
[401234755,1768061202216,-155.96802217,9.591e-05,2]
[401234756,1768061204242,-180.32183878,9.591e-05,2]
[401234757,1768061205717,-268.39013905,9.591e-05,2]
[401234758,1768061210471,-259.34177295,9.591e-05,2]
[401234759,1768061212070,-184.87438556,9.591e-05,2]
[401234760,1768061214300,-316.76736443,9.591e-05,2]
[401234761,1768061216160,-200.12379985,9.591e-05,2]
[401234762,1768061219646,-392.46408759,9.591e-05,2]
[401234763,1768061222935,-223.46138158,9.591e-05,2]
[401234764,1768061224644,-185.97107347,9.59e-05,2]
[401234765,1768061227842,-114.02892653,9.59e-05,2]
[401234766,1768061227866,-133.60023539,9.591e-05,2]
[401234767,1768061231103,-300.0,9.591e-05,2]
[401234768,1768061233751,-260.99716936,9.591e-05,2]
[401234769,1768061237766,-229.5295333,9.591e-05,2]
[401234770,1768061241480,-236.83101623,9.591e-05,2]
[401234771,1768061244402,-245.7320546,9.591e-05,2]
[401234772,1768061246920,-258.65720266,9.591e-05,2]
[401234773,1768061248970,-182.71776581,9.591e-05,2]
[401234774,1768061251080,-298.57205235,9.591e-05,2]
[401234775,1768061256929,-295.81390801,9.591e-05,2]
[401234776,1768061258271,165.24,8.925e-05,2]
[401234777,1768061259705,-192.78,9.269e-05,2]
[401234778,1768061259728,-335.02197347,9.591e-05,2]
[401234779,1768061261926,-259.34177295,9.591e-05,2]
[401234780,1768061263349,-182.179,9.591e-05,2]
[401234781,1768061264854,-164.31311569,9.591e-05,2]
[401234782,1768061266935,-302.97291674,9.591e-05,2]
[401234783,1768061270215,-196.93558463,9.591e-05,2]
[401234784,1768061272305,-215.04454685,9.591e-05,2]
[401234785,1768061273829,-393.18225642,9.591e-05,2]
[401234786,1768061278043,-479.57405048,9.591e-05,2]
[401234787,1768061279448,-195.61728058,9.591e-05,2]
[401234788,1768061280117,265.44,8.238e-05,2]
[401234789,1768061280894,-166.95029715,9.591e-05,2]
[401234790,1768061286023,-300.0,9.59e-05,2]
[401234791,1768061286051,-9.71624276,9.591e-05,2]
[401234792,1768061288126,-212.60059896,9.591e-05,2]
[401234793,1768061290091,-309.72266399,9.591e-05,2]
[401234794,1768061292610,-151.06853535,9.591e-05,2]
[401234795,1768061294090,-152.37862646,9.591e-05,2]
[401234796,1768061295669,-233.06802357,9.591e-05,2]
[401234798,1768061298847,-428.03925593,9.591e-05,2]
[401234799,1768061300275,-194.6471544,9.591e-05,2]
[401234800,1768061301817,-198.33464829,9.591e-05,2]
[401234801,1768061303449,-300.0,9.591e-05,2]
[401234804,1768061305462,-208.09971994,9.591e-05,2]
[401234805,1768061307315,-395.58904437,9.591e-05,2]
[401234815,1768061310090,-332.96197484,9.492e-05,2]
[401234816,1768061311964,-174.21371744,9.492e-05,2]
[401234817,1768061314077,-455.27849592,9.491e-05,2]
[401234818,1768061316644,-44.72150408,9.491e-05,2]
[401234819,1768061316670,-339.68212874,9.491e-05,2]
[401234820,1768061318565,-160.31787126,9.491e-05,2]
[401234821,1768061318593,-168.93508837,9.491e-05,2]
[401234822,1768061320627,-331.06491163,9.491e-05,2]
[401234823,1768061320652,-21.69953636,9.491e-05,2]
[401234824,1768061322792,-348.52789711,9.491e-05,2]
[401234825,1768061326387,-129.77256653,9.491e-05,2]
[401234826,1768061326414,-181.03001089,9.491e-05,2]
[401234827,1768061327902,-194.604636,9.491e-05,2]
[401234828,1768061329027,168.11,8.35e-05,2]
[401234829,1768061329665,196.13,8.672e-05,2]
[401234830,1768061330107,224.15,8.993e-05,2]
[401234831,1768061330459,-124.36535311,9.491e-05,2]
[401234832,1768061330484,-123.72199275,9.491e-05,2]
[401234833,1768061333587,-156.88176735,9.314e-05,2]
[401234834,1768061337845,-95.28823265,9.314e-05,2]
[401234835,1768061337872,-319.13804855,9.491e-05,2]
[401234836,1768061339359,-48.43399579,9.491e-05,2]
[401234837,1768061339389,-331.54572381,9.492e-05,2]
[401234838,1768061342459,-379.41497569,9.492e-05,2]
[401234839,1768061343965,-183.60348623,9.491e-05,2]
[401234840,1768061346480,-116.39651377,9.491e-05,2]
[401234841,1768061346506,-258.54246207,9.491e-05,2]
[401234843,1768061348581,-41.45753793,9.491e-05,2]
[401234844,1768061348611,-142.936045,9.492e-05,2]
[401234845,1768061350530,-425.42367216,9.492e-05,2]
[401234846,1768061352144,-205.74623607,9.492e-05,2]
[401234847,1768061355147,-154.36641924,9.492e-05,2]
[401234848,1768061358008,-453.7,9.492e-05,2]
[401234849,1768061360163,-322.37673636,9.492e-05,2]
[401234850,1768061362168,-214.21744863,9.492e-05,2]
[401234851,1768061364327,-166.27861173,9.492e-05,2]
[401234852,1768061368877,-167.06774744,9.492e-05,2]
[401234853,1768061371008,-230.04484997,9.492e-05,2]
[401234854,1768061372462,-300.0,9.492e-05,2]
[401234855,1768061375085,-156.89941992,9.492e-05,2]
[401234857,1768061380585,-166.74711218,9.492e-05,2]
[401234858,1768061383094,-499.35379479,9.492e-05,2]
[401234859,1768061385176,-218.00861682,9.492e-05,2]
[401234860,1768061388494,-657.46302397,9.492e-05,2]
[401234861,1768061391168,-166.66666668,9.492e-05,2]
[401234862,1768061393214,-300.0,9.491e-05,2]
[401234863,1768061396163,-200.0,9.491e-05,2]
[401234864,1768061396189,-7.74,9.491e-05,2]
[401234865,1768061399356,-284.66777357,9.491e-05,2]
[401234866,1768061399415,157.54,8.303e-05,2]
[401234867,1768061399827,183.8,8.622e-05,2]
[401234868,1768061400267,210.06,8.941e-05,2]
[401234870,1768061401421,-172.74084344,9.261e-05,2]
[401234871,1768061405479,152.98,5e-05,2]
[401234872,1768061405528,-63.57915656,9.261e-05,2]
[401234873,1768061405553,-436.42084344,9.261e-05,2]
[401234874,1768061406053,152.98,5.1e-05,2]
[401234875,1768061406762,152.98,5.2e-05,2]
[401234876,1768061407043,-113.57915656,9.261e-05,2]
[401234877,1768061407068,-140.77219362,9.49e-05,2]
[401234878,1768061407396,152.98,5.4e-05,2]
[401234879,1768061408037,152.98,5.5e-05,2]
[401234880,1768061408512,152.98,5.6e-05,2]
[401234881,1768061408938,-159.22780638,9.49e-05,2]
[401234882,1768061408966,-77.05446815,9.49e-05,2]
[401234883,1768061409082,152.98,5.7e-05,2]
[401234884,1768061409629,152.98,5.9e-05,2]
[401234885,1768061410140,152.98,6e-05,2]
[401234886,1768061410711,152.98,6.1e-05,2]
[401234888,1768061411356,152.98,6.2e-05,2]
[401234889,1768061411861,152.98,6.3e-05,2]
[401234890,1768061412498,152.98,6.5e-05,2]
[401234891,1768061413076,-181.77,9.49e-05,2]
[401234892,1768061413122,152.98,6.6e-05,2]
[401234893,1768061413664,152.98,6.7e-05,2]
[401234894,1768061414268,152.98,6.8e-05,2]
[401234895,1768061415332,152.98,7e-05,2]
[401234896,1768061415762,152.98,7.1e-05,2]
[401234897,1768061415868,-168.93525318,9.49e-05,2]
[401234898,1768061416310,152.98,7.2e-05,2]
[401234899,1768061416858,152.98,7.3e-05,2]
[401234900,1768061417484,152.98,7.4e-05,2]
[401234901,1768061418082,152.98,7.6e-05,2]
[401234902,1768061418617,152.98,7.7e-05,2]
[401234903,1768061418995,-207.33617055,9.49e-05,2]
[401234904,1768061419226,152.98,7.8e-05,2]
[401234905,1768061419802,152.98,7.9e-05,2]
[401234906,1768061420464,152.98,8.1e-05,2]
[401234907,1768061420863,-205.14083363,9.49e-05,2]
[401234908,1768061420988,152.98,8.2e-05,2]
[401234909,1768061421736,152.98,8.3e-05,2]
[401234910,1768061422142,152.98,8.4e-05,2]
[401234911,1768061422791,152.98,8.5e-05,2]
[401234912,1768061422926,-209.65154295,9.49e-05,2]
[401234913,1768061423414,152.98,8.7e-05,2]
[401234914,1768061424041,152.98,8.8e-05,2]
[401234915,1768061424449,-150.11173154,9.49e-05,2]
[401234916,1768061424475,-149.88826846,9.491e-05,2]
[401234917,1768061424718,152.98,8.9e-05,2]
[401234918,1768061425257,152.98,9e-05,2]
[401234919,1768061426496,-280.07401346,9.491e-05,2]
[401234920,1768061429133,-70.03771808,9.491e-05,2]
[401234921,1768061429159,-193.16145965,9.491e-05,2]
[401234933,1768061431869,-14.43076678,9.491e-05,2]
[401234935,1768061431895,-249.27944371,9.491e-05,2]
[401234938,1768061432061,-327.15695487,9.491e-05,2]
[401234940,1768061432071,-500.0,9.491e-05,2]
[401234941,1768061432080,-500.0,9.491e-05,2]
[401234942,1768061432090,-500.0,9.491e-05,2]
[401234943,1768061432099,-500.0,9.491e-05,2]
[401234944,1768061432108,-500.0,9.491e-05,2]
[401234945,1768061432118,-500.0,9.491e-05,2]
[401234946,1768061432129,-500.0,9.491e-05,2]
[401234947,1768061432139,-500.0,9.491e-05,2]
[401234948,1768061432150,-500.0,9.491e-05,2]
[401234949,1768061432160,-500.0,9.491e-05,2]
[401234950,1768061432170,-500.0,9.491e-05,2]
[401234951,1768061432179,-500.0,9.491e-05,2]
[401234952,1768061432189,-500.0,9.491e-05,2]
[401234953,1768061432198,-500.0,9.491e-05,2]
[401234954,1768061432209,-500.0,9.491e-05,2]
[401234955,1768061432220,-500.0,9.491e-05,2]
[401234956,1768061432230,-500.0,9.491e-05,2]
[401234957,1768061432241,-500.0,9.491e-05,2]
[401234958,1768061432251,-500.0,9.491e-05,2]
[401234959,1768061432261,-500.0,9.491e-05,2]
[401234960,1768061432272,-500.0,9.491e-05,2]
[401234961,1768061432281,-479.69055295,9.491e-05,2]
[401234962,1768061432290,-298.70084844,9.491e-05,2]
[401234963,1768061432299,-500.0,9.491e-05,2]
[401234964,1768061432309,-500.0,9.491e-05,2]
[401234965,1768061432318,-500.0,9.491e-05,2]
[401234966,1768061432328,-500.0,9.491e-05,2]
[401234967,1768061432337,-500.0,9.491e-05,2]
[401234968,1768061432346,-500.0,9.491e-05,2]
[401234969,1768061432355,-500.0,9.491e-05,2]
[401234970,1768061432365,-500.0,9.491e-05,2]
[401234971,1768061432374,-493.25560452,9.491e-05,2]
[401234972,1768061432384,-500.0,9.491e-05,2]
[401234973,1768061432393,-500.0,9.491e-05,2]
[401234974,1768061432402,-500.0,9.491e-05,2]
[401234975,1768061432412,-500.0,9.491e-05,2]
[401234976,1768061432421,-500.0,9.491e-05,2]
[401234977,1768061432431,-500.0,9.491e-05,2]
[401234978,1768061432442,-500.0,9.491e-05,2]
[401234979,1768061432451,-500.0,9.491e-05,2]
[401234980,1768061432461,-500.0,9.491e-05,2]
[401234981,1768061432471,-500.0,9.491e-05,2]
[401234982,1768061432481,-500.0,9.491e-05,2]
[401234983,1768061432490,-500.0,9.491e-05,2]
[401234984,1768061432500,-500.0,9.491e-05,2]
[401234985,1768061432510,-500.0,9.491e-05,2]
[401234986,1768061432520,-500.0,9.491e-05,2]
[401234987,1768061432530,-500.0,9.491e-05,2]
[401234988,1768061432539,-500.0,9.491e-05,2]
[401234989,1768061432549,-500.0,9.491e-05,2]
[401234990,1768061432559,-65760.3290632,9.492e-05,2]
[401234991,1768061434944,-382.09580139,9.491e-05,2]
[401234999,1768061438165,-117.90419861,9.491e-05,2]
[401235000,1768061438175,-500.0,9.491e-05,2]
[401235001,1768061438185,-500.0,9.491e-05,2]
[401235002,1768061438196,-928374.23814406,9.492e-05,2]
[401235003,1768061438206,-262.57,9.58e-05,2]
[401235004,1768061438215,-1010.70942025,9.592e-05,2]
[401235005,1768061438225,-16983.69694679,9.592e-05,2]
[401235006,1768061438234,-500.0,9.765e-05,2]
[401235007,1768061438244,-300.0,9.783e-05,2]
[401235008,1768061438254,-300.0,9.783e-05,2]
[401235009,1768061438263,-300.0,9.783e-05,2]
[401235010,1768061438273,-300.0,9.783e-05,2]
[401235011,1768061438283,-300.0,9.783e-05,2]
[401235012,1768061438293,-300.0,9.783e-05,2]
[401235013,1768061438302,-300.0,9.783e-05,2]
[401235014,1768061438312,-300.0,9.783e-05,2]
[401235015,1768061438327,-300.0,9.783e-05,2]
[401235016,1768061438336,-300.0,9.783e-05,2]
[401235017,1768061438345,-300.0,9.783e-05,2]
[401235018,1768061438358,-300.0,9.783e-05,2]
[401235019,1768061438368,-300.0,9.783e-05,2]
[401235020,1768061438378,-300.0,9.783e-05,2]
[401235021,1768061438387,-300.0,9.783e-05,2]
[401235022,1768061438396,-600.0,9.783e-05,2]
[401235023,1768061438406,-50000.0,9.783e-05,2]
[401235024,1768061438416,-151.0,0.0001,2]
[401235025,1768061438426,-158.67691951,0.0001,2]
[401235026,1768061438436,-319.54093411,0.00010039,2]
[401235027,1768061438445,-420.0,0.00010439,2]
[401235028,1768061438455,-1680.0,0.00010439,2]
[401235029,1768061438464,-720.0,0.00010761,2]
[401235030,1768061438473,-784.3051177,0.00010825,2]
[401235031,1768061438483,-9061.69018318,0.00010842,2]
[401235032,1768061438492,-999.0,0.00010959,2]
[401235033,1768061438501,-151.0,0.00011,2]
[401235034,1768061438511,-175.0021265,0.00011101,2]
[401235035,1768061438521,-587.0,0.00011483,2]
[401235036,1768061438530,-2351.0,0.00011483,2]
[401235037,1768061438540,-177.0,0.00011591,2]
[401235038,1768061438550,-864.0,0.00011837,2]
[401235039,1768061438559,-11877.56,0.00012329,2]
[401235040,1768061438568,-9897.96,0.00012329,2]
[401235041,1768061438578,-8248.3,0.00012329,2]
[401235042,1768061438587,-6873.59,0.00012329,2]
[401235043,1768061438598,-5727.99,0.00012329,2]
[401235044,1768061438608,-4773.32,0.00012329,2]
[401235045,1768061438618,-3977.77,0.00012329,2]
[401235046,1768061438627,-3314.81,0.00012329,2]
[401235047,1768061438637,-2762.34,0.00012329,2]
[401235048,1768061438647,-2301.95,0.00012329,2]
[401235049,1768061438656,-1918.29,0.00012329,2]
[401235050,1768061438666,-1598.58,0.00012329,2]
[401235051,1768061438676,-1332.15,0.00012329,2]
[401235052,1768061438685,-1110.12,0.00012329,2]
[401235053,1768061438697,-925.1,0.00012329,2]
[401235054,1768061438707,-770.92,0.00012329,2]
[401235055,1768061438716,-642.43,0.00012329,2]
[401235056,1768061438727,-535.36,0.00012329,2]
[401235057,1768061438736,-446.13,0.00012329,2]
[401235058,1768061438746,-371.78,0.00012329,2]
[401235059,1768061438756,-309.81,0.00012329,2]
[401235060,1768061438765,-258.18,0.00012329,2]
[401235061,1768061438775,-215.15,0.00012329,2]
[401235062,1768061438784,-179.29,0.00012329,2]
[401235063,1768061438794,-179.29,0.00012329,2]
[401235064,1768061438806,-717.19,0.00012329,2]
[401235065,1768061438816,-1050.57090102,0.00012329,2]
[401235066,1768061438826,-1050.57090102,0.00012329,2]
[401235067,1768061438835,-1050.57090102,0.00012329,2]
[401235068,1768061438845,-1050.57090102,0.00012329,2]
[401235069,1768061438855,-1050.57090102,0.00012329,2]
[401235070,1768061438866,-1050.57090102,0.00012329,2]
[401235071,1768061438876,-1050.57090102,0.00012329,2]
[401235072,1768061438885,-1050.57090102,0.00012329,2]
[401235073,1768061438895,-1050.57090102,0.00012329,2]
[401235074,1768061438905,-1050.57090102,0.00012329,2]
[401235075,1768061438915,-1050.57090102,0.00012329,2]
[401235076,1768061438925,-1050.57090102,0.00012329,2]
[401235077,1768061438935,-1050.57090102,0.00012329,2]
[401235078,1768061438944,-1050.57090102,0.00012329,2]
[401235079,1768061438954,-1050.57090102,0.00012329,2]
[401235080,1768061438964,-1050.57090102,0.00012329,2]
[401235081,1768061438974,-1050.57090102,0.00012329,2]
[401235082,1768061438983,-1050.57090102,0.00012329,2]
[401235083,1768061438993,-1050.57090102,0.00012329,2]
[401235084,1768061439003,-1050.57090102,0.00012329,2]
[401235085,1768061439013,-1050.57090102,0.00012329,2]
[401235086,1768061439023,-1050.57090102,0.00012329,2]
[401235087,1768061439032,-1050.57090102,0.00012329,2]
[401235088,1768061439042,-1050.57090102,0.00012329,2]
[401235089,1768061439052,-1050.57090102,0.00012329,2]
[401235090,1768061439062,-1050.57090102,0.00012329,2]
[401235091,1768061439071,-1050.57090102,0.00012329,2]
[401235092,1768061439082,-1050.57090102,0.00012329,2]
[401235093,1768061439091,-1050.57090102,0.00012329,2]
[401235094,1768061439101,-1050.57090102,0.00012329,2]
[401235095,1768061439111,-1050.57090102,0.00012329,2]
[401235096,1768061439123,-1050.57090102,0.00012329,2]
[401235097,1768061439135,-1050.57090102,0.00012329,2]
[401235098,1768061439145,-1050.57090102,0.00012329,2]
[401235099,1768061439155,-1050.57090102,0.00012329,2]
[401235100,1768061439165,-1050.57090102,0.00012329,2]
[401235101,1768061439176,-1050.57090102,0.00012329,2]
[401235102,1768061439186,-1050.57090102,0.00012329,2]
[401235103,1768061439196,-1050.57090102,0.00012329,2]
[401235104,1768061439206,-1050.57090102,0.00012329,2]
[401235105,1768061439216,-1050.57090102,0.00012329,2]
[401235106,1768061439226,-1050.57090102,0.00012329,2]
[401235107,1768061439235,-1050.57090102,0.00012329,2]
[401235108,1768061439245,-1050.57090102,0.00012329,2]
[401235109,1768061439254,-1050.57090102,0.00012329,2]
[401235110,1768061439264,-1050.57090102,0.00012329,2]
[401235111,1768061439274,-1050.57090102,0.00012329,2]
[401235112,1768061439284,-1050.57090102,0.00012329,2]
[401235113,1768061439294,-1050.57090102,0.00012329,2]
[401235114,1768061439304,-1050.57090102,0.00012329,2]
[401235115,1768061439313,-1050.57090102,0.00012329,2]
[401235116,1768061439322,-1050.57090102,0.00012329,2]
[401235117,1768061439332,-318.0,0.00012487,2]
[401235118,1768061439342,-250.0,0.00012542,2]
[401235119,1768061439351,-619.36,0.0001261,2]
[401235120,1768061439360,-823.0,0.00012631,2]
[401235121,1768061439371,-3292.0,0.00012631,2]
[401235122,1768061439382,-4751.13091048,0.000129,2]
[401235123,1768061439391,-7142.16034431,0.00013,2]
[401235124,1768061439400,-1000.0,0.00013021,2]
[401235125,1768061439411,-2749.00313029,0.00013305,2]
[401235126,1768061439420,-4751.13091044,0.00013411,2]
[401235127,1768061439430,-204.0,0.00013591,2]
[401235128,1768061439440,-1152.0,0.00013894,2]
[401235129,1768061439449,-1718.0,0.00013894,2]
[401235130,1768061439459,-1000.0,0.00014323,2]
[401235131,1768061439468,-244.0,0.00014323,2]
[401235132,1768061439478,-1603.0,0.00015283,2]
[401235133,1768061439487,-231.0,0.00015591,2]
[401235134,1768061439497,-1000.0,0.00015755,2]
[401235135,1768061439506,-492.0,0.00015755,2]
[401235136,1768061439516,-1000.0,0.0001733,2]
[401235137,1768061439525,-791.0,0.0001733,2]
[401235138,1768061439534,-4751.13091044,0.00017341,2]
[401235139,1768061439544,-258.0,0.00017591,2]
[401235140,1768061439553,-726.26001801,0.00017998,2]
[401235141,1768061439562,-1000.0,0.00019064,2]
[401235142,1768061439573,-1000.0,0.00019064,2]
[401235143,1768061439582,-285.0,0.00019591,2]
[401235144,1768061439592,-6834.71,0.000196,2]
[401235145,1768061439602,-586.45728253,0.00020356,2]
[401235146,1768061439611,-2343.48330101,0.00020356,2]
[401235147,1768061439621,-151.0,0.000209,4]
[401235148,1768061439630,-177.03,0.000209,2]
[401235149,1768061439640,-1000.0,0.0002097,2]
[401235150,1768061439765,-1000.0,0.0002097,2]
[401235151,1768061439777,-579.0,0.0002097,2]
[401235152,1768061439786,-312.0,0.00021591,2]
[401235153,1768061439796,-1000.0,0.00023067,10]
[401235154,1768061439806,-1000.0,0.00023067,10]
[401235155,1768061439816,-1000.0,0.00023067,10]
[401235156,1768061439826,-339.0,0.00023591,2]
[401235157,1768061439835,-1041.66666667,0.000239,2]
[401235159,1768061439844,-190.0,0.00024603,13]
[401235160,1768061439854,-1000.0,0.00025374,10]
[401235161,1768061439863,-1000.0,0.00025374,10]
[401235162,1768061439872,-1000.0,0.00025374,10]
[401235163,1768061439881,-715.0,0.00025374,10]
[401235164,1768061439890,-366.0,0.00025591,2]
[401235165,1768061439900,-500.0,0.00025648,7]
[401235166,1768061439910,-516.35781364,0.00025958,7]
[401235167,1768061439919,-250.0,0.00027288,2]
[401235168,1768061439930,-268.92290975,0.00027288,2]
[401235169,1768061439939,-9999.3338094,0.00027288,2]
[401235170,1768061439949,-393.0,0.00027591,2]
[401235171,1768061439959,-1000.0,0.00027911,30]
[401235172,1768061439968,-1000.0,0.00027911,30]
[401235173,1768061439978,-1000.0,0.00027911,30]
[401235174,1768061439987,-177.0,0.00028438,29]
[401235175,1768061439998,-6834.71,0.000285,2]
[401235177,1768061440019,-420.0,0.00029591,2]
[401235179,1768061440030,-151.0,0.00030137,14]
[401235180,1768061440041,-711.105,0.00030418,26]
[401235181,1768061440051,-174.102,0.00030418,26]
[401235183,1768061440061,-151.0,0.000308,15]
[401235185,1768061440071,-447.0,0.00031591,2]
[401235187,1768061440082,-999.0,0.00032876,120]
[401235188,1768061440092,-6334.84121392,0.00033066,2]
[401235189,1768061440104,-151.6053793,0.000332,117]
[401235190,1768061440114,-151.6053793,0.000332,117]
[401235191,1768061440126,-151.6053793,0.000332,117]
[401235192,1768061440137,-324.5,0.00033444,30]
[401235193,1768061440147,-796.0,0.00033444,30]
[401235194,1768061440159,-474.0,0.00033591,120]
[401235195,1768061440171,-210.0,0.00033699,5]
[401235196,1768061440180,-160.0,0.00033918,64]
[401235197,1768061440190,-999.0,0.00033972,120]
[401235198,1768061440202,-5058.79910613,0.00034175,46]
[401235200,1768061440213,-151.67,0.00034355,60]
[401235201,1768061440223,-151.67,0.00034455,60]
[401235202,1768061440233,-270.0,0.00034521,5]
[401235203,1768061440243,-151.67,0.00034555,60]
[401235204,1768061440253,-151.67,0.00034655,60]
[401235206,1768061440263,-151.67,0.00034755,60]
[401235208,1768061440273,-151.67,0.00034855,60]
[401235210,1768061440283,-151.67,0.00034955,60]
[401235211,1768061440293,-151.67,0.00035055,60]
[401235212,1768061440303,-999.0,0.00035068,120]
[401235213,1768061440313,-151.67,0.00035155,60]
[401235214,1768061440323,-151.67,0.00035255,60]
[401235215,1768061440333,-237.59741754,0.00035342,5]
[401235216,1768061440343,-330.0,0.00035342,5]
[401235217,1768061440353,-151.67,0.00035355,60]
[401235218,1768061440363,-151.77,0.00035455,60]
[401235219,1768061440376,-463.10764855,0.00035591,120]
[401235220,1768061440387,-500.0,0.00035616,30]
[401235221,1768061440397,-334.34878739,0.00035616,7]
[401235222,1768061440409,-200.0,0.00035694,120]
[401235223,1768061440419,-156.012,0.00035726,2]
[401235224,1768061440429,-200.0,0.00035801,120]
[401235225,1768061440440,-156.012,0.00035826,2]
[401235226,1768061440451,-156.012,0.00035926,2]
[401235227,1768061440463,-200.0,0.00035926,120]
[401235228,1768061440473,-247601.95839655,0.00035937,4]